fUSD/lending_fUSD_20250127
["ID","MTS","AMOUNT","RATE_DAILY","PERIOD"]
[350584130,1737973842937,-151.81,0.00010137,2]
[350584131,1737973842946,-5817.42335124,0.000108,2]
[350584132,1737973843311,-4428.46019869,0.000108,2]
[350584142,1737973845985,-56682.53214466,0.000108,2]
[350584143,1737973846147,-67835.25418091,0.000108,2]
[350584144,1737973846157,-216.09852026,0.000108,2]
[350584145,1737973846166,-500.0,0.00010822,2]
[350584146,1737973846174,-247.51,0.00010823,2]
[350584147,1737973846183,-6383.97267386,0.00010877,2]
[350584148,1737973846191,-252.59,0.00010877,2]
[350584149,1737973846201,-249.85,0.00010881,2]
[350584150,1737973846210,-253.64,0.00010887,2]
[350584151,1737973846219,-245.68,0.00010899,2]
[350584152,1737973846230,-568.62,0.00010953,2]
[350584153,1737973846239,-500.0,0.00010958,2]
[350584154,1737973846248,-500.0,0.00010958,2]
[350584155,1737973846257,-500.0,0.00010958,2]
[350584156,1737973846268,-500.0,0.00010958,2]
[350584157,1737973846277,-500.0,0.00010958,2]
[350584158,1737973846287,-500.0,0.00010958,2]
[350584159,1737973846296,-500.0,0.00010958,2]
[350584160,1737973846305,-500.0,0.00010958,2]
[350584161,1737973846314,-500.0,0.00010958,2]
[350584162,1737973846323,-500.0,0.00010958,2]
[350584163,1737973846332,-500.0,0.00010958,2]
[350584164,1737973846342,-839.39,0.00010958,2]
[350584165,1737973846351,-500.0,0.00010958,2]
[350584166,1737973846361,-500.0,0.00010958,2]
[350584167,1737973846370,-500.0,0.00010958,2]
[350584168,1737973846379,-524.42,0.00010958,2]
[350584169,1737973846389,-500.0,0.00010958,2]
[350584170,1737973846401,-500.0,0.00010958,2]
[350584171,1737973846411,-500.0,0.00010958,2]
[350584172,1737973846420,-500.0,0.00010958,2]
[350584173,1737973846429,-500.0,0.00010958,2]
[350584174,1737973846441,-500.0,0.00010958,2]
[350584175,1737973846451,-500.0,0.00010958,2]
[350584176,1737973846460,-500.0,0.00010958,2]
[350584177,1737973846469,-500.0,0.00010958,2]
[350584178,1737973846480,-157.324551,0.00010958,2]
[350584179,1737973846489,-157.324551,0.00010958,2]
[350584180,1737973846499,-500.0,0.00010958,2]
[350584181,1737973846508,-500.0,0.00010958,2]
[350584182,1737973846517,-500.0,0.00010958,2]
[350584183,1737973846526,-500.0,0.00010958,2]
[350584184,1737973846536,-500.0,0.00010958,2]
[350584185,1737973846546,-500.0,0.00010958,2]
[350584186,1737973846556,-500.0,0.00010958,2]
[350584187,1737973846565,-500.0,0.00010958,2]
[350584188,1737973846575,-500.0,0.00010958,2]
[350584189,1737973846584,-500.0,0.00010958,2]
[350584190,1737973846594,-271.70480374,0.00010958,2]
[350584191,1737973846603,-500.0,0.00010958,2]
[350584192,1737973846612,-500.0,0.00010958,2]
[350584193,1737973846621,-649.52,0.00010958,2]
[350584194,1737973846630,-500.0,0.00010958,2]
[350584195,1737973846640,-500.0,0.00010958,2]
[350584196,1737973846649,-500.0,0.00010958,2]
[350584197,1737973846659,-500.0,0.00010958,2]
[350584198,1737973846668,-500.0,0.00010958,2]
[350584199,1737973846677,-500.0,0.00010958,2]
[350584200,1737973846687,-500.0,0.00010958,2]
[350584201,1737973846696,-500.0,0.00010958,2]
[350584202,1737973846705,-500.0,0.00010958,2]
[350584203,1737973846714,-500.0,0.00010958,2]
[350584204,1737973846723,-500.0,0.00010958,2]
[350584205,1737973846733,-500.0,0.00010958,2]
[350584206,1737973846742,-158.644789,0.00010958,2]
[350584207,1737973846751,-150.0,0.00010964,2]
[350584208,1737973846760,-1300.0,0.00010972,2]
[350584209,1737973846769,-500.0,0.00010972,2]
[350584210,1737973846778,-251.01,0.00010972,2]
[350584211,1737973846787,-245.63,0.00010972,2]
[350584212,1737973846797,-4245.50610063,0.0001099,2]
[350584213,1737973846806,-150.0,0.00011021,2]
[350584214,1737973846814,-8884.08,0.00011026,2]
[350584215,1737973846823,-887.75,0.00011037,2]
[350584216,1737973846832,-150.0,0.00011058,2]
[350584217,1737973846841,-251.86,0.00011067,2]
[350584218,1737973846850,-438.12,0.00011078,2]
[350584219,1737973846859,-150.0,0.00011102,2]
[350584220,1737973846868,-150.0,0.00011105,2]
[350584221,1737973846877,-150.0,0.00011111,2]
[350584222,1737973846885,-420.0,0.00011148,2]
[350584223,1737973846894,-438.12,0.00011178,2]
[350584224,1737973846903,-305.04,0.00011178,2]
[350584225,1737973846912,-521.91632223,0.00011237,2]
[350584226,1737973846921,-150.0,0.00011267,2]
[350584227,1737973846930,-150.0,0.00011291,2]
[350584228,1737973846938,-150.0,0.00011365,2]
[350584229,1737973846947,-150.0,0.00011388,2]
[350584230,1737973846957,-150.0,0.00011391,2]
[350584231,1737973846965,-150.0,0.00011411,2]
[350584232,1737973846975,-150.0,0.00011451,2]
[350584233,1737973846984,-150.0,0.00011495,2]
[350584234,1737973846993,-381.91,0.00011496,2]
[350584235,1737973847003,-300.0,0.00011502,2]
[350584236,1737973847012,-150.0,0.00011572,2]
[350584237,1737973847021,-150.0,0.00011625,2]
[350584238,1737973847030,-150.0,0.00011672,2]
[350584239,1737973847040,-150.0,0.00011728,2]
[350584240,1737973847049,-151.0,0.00011799,2]
[350584241,1737973847058,-150.0,0.00011808,2]
[350584242,1737973847067,-157.324551,0.00011875,2]
[350584243,1737973847076,-157.324551,0.00011877,2]
[350584244,1737973847085,-150.0,0.00011879,2]
[350584245,1737973847094,-608.90867248,0.00011889,2]
[350584246,1737973847103,-608.90867243,0.0001189,2]
[350584247,1737973847112,-608.90867243,0.00011891,2]
[350584248,1737973847121,-2951.342,0.00011892,2]
[350584249,1737973847129,-171.248,0.00011892,2]
[350584250,1737973847138,-608.90867243,0.00011893,2]
[350584251,1737973847147,-608.90867243,0.00011894,2]
[350584252,1737973847155,-608.90867243,0.00011895,2]
[350584253,1737973847164,-267.6986652,0.000119,2]
[350584254,1737973847173,-346.33475468,0.000119,2]
[350584255,1737973847182,-1929.63622124,0.000119,2]
[350584256,1737973847191,-521.91632223,0.000119,2]
[350584257,1737973847200,-150.0,0.00011912,2]
[350584258,1737973847209,-157.324551,0.00011917,2]
[350584259,1737973847218,-150.0,0.00011966,2]
[350584260,1737973847227,-5216.8368,0.00011973,2]
[350584261,1737973847236,-500.0,0.00011973,2]
[350584262,1737973847245,-157.324551,0.00011988,2]
[350584263,1737973847254,-208.5379914,0.00011989,2]
[350584264,1737973847264,-571.1004834,0.00011989,2]
[350584265,1737973847273,-158.1062397,0.00011989,2]
[350584266,1737973847282,-5800.0,0.00011992,2]
[350584267,1737973847291,-208.5379914,0.00011992,2]
[350584268,1737973847300,-208.5379914,0.00011992,2]
[350584269,1737973847309,-158.1062397,0.00011992,2]
[350584270,1737973847318,-158.1062397,0.00011992,2]
[350584271,1737973847327,-201.23154308,0.00011996,2]
[350584272,1737973847336,-500.0,0.00011996,2]
[350584273,1737973847345,-511.92,0.00011996,2]
[350584274,1737973847354,-306.96,0.00011996,2]
[350584275,1737973847364,-540.48,0.00011996,2]
[350584276,1737973847373,-500.0,0.00011996,2]
[350584277,1737973847383,-502.58439507,0.00011997,2]
[350584278,1737973847393,-500.0,0.00011997,2]
[350584279,1737973847404,-500.0,0.00011997,2]
[350584280,1737973847413,-500.0,0.00011997,2]
[350584281,1737973847422,-500.0,0.00011997,2]
[350584282,1737973847431,-500.0,0.00011997,2]
[350584283,1737973847442,-500.0,0.00011997,2]
[350584284,1737973847451,-500.0,0.00011997,2]
[350584285,1737973847460,-500.0,0.00011997,2]
[350584286,1737973847471,-500.0,0.00011997,2]
[350584287,1737973847481,-500.0,0.00011997,2]
[350584288,1737973847490,-500.0,0.00011997,2]
[350584289,1737973847499,-500.0,0.00011997,2]
[350584290,1737973847509,-500.0,0.00011997,2]
[350584291,1737973847518,-500.0,0.00011997,2]
[350584292,1737973847527,-500.0,0.00011997,2]
[350584293,1737973847536,-500.0,0.00011997,2]
[350584294,1737973847547,-340.03264355,0.00011997,2]
[350584295,1737973847577,-158.644789,0.00011067,2]
[350584296,1737973847587,-159.96735645,0.00011997,2]
[350584297,1737973847596,-528.32,0.00011997,2]
[350584298,1737973847605,-72.5178548,0.00011997,2]
[350584300,1737974001327,909.28,9.038e-05,2]
[350584302,1737974085260,13089.41667363,0.00022,120]
[350584312,1737974973316,863.81,8.64e-05,2]
[350584324,1737975032241,-250.0,0.00010548,2]
[350584325,1737975032255,-300.0,0.00010556,2]
[350584326,1737975032264,-3603.82927351,0.00010557,2]
[350584327,1737975032300,-6887.09056867,0.00010557,2]
[350584328,1737975032350,-2170.46711662,0.00010557,2]
[350584329,1737975032403,-2039.82839759,0.00010557,2]
[350584330,1737975032512,-641.54000883,0.00010557,2]
[350584331,1737975032524,-322.36710265,0.00010557,2]
[350584332,1737975032565,-2226.9,0.00010557,2]
[350584334,1737975033464,-1446.33781593,0.00010557,2]
[350584444,1737975038103,-2523.53228892,0.00010557,2]
[350584447,1737975038116,-926.23592187,0.00010557,2]
[350584457,1737975038211,-839.68420702,0.00010557,2]
[350584458,1737975038223,-272.18729839,0.00010557,2]
[350584459,1737975038233,-1000.0,0.00010569,2]
[350584460,1737975038243,-4261.67696867,0.00010581,2]
[350584461,1737975038255,-6053.82,0.00010581,2]
[350584462,1737975038265,-169.18,0.00010598,2]
[350584463,1737975038274,-150.0,0.00010599,2]
[350584464,1737975038284,-413.1656,0.000106,2]
[350584465,1737975038294,-450.82,0.00010657,2]
[350584466,1737975038303,-250.0,0.00010695,2]
[350584467,1737975038314,-741.66680942,0.000107,2]
[350584468,1737975038323,-206.67575907,0.0001076,2]
[350584469,1737975038333,-306.4,0.00010762,2]
[350584470,1737975038343,-150.0,0.00010767,2]
[350584471,1737975038352,-150.0,0.00010774,2]
[350584472,1737975038362,-206.67575907,0.00010858,2]
[350584473,1737975038371,-552.06321117,0.00010858,2]
[350584474,1737975038381,-173.6,0.00010858,2]
[350584475,1737975038390,-250.0,0.0001088,2]
[350584476,1737975038399,-212.2573,0.000109,2]
[350584477,1737975038408,-863.81,0.00010904,2]
[350584478,1737975038418,-150.0,0.00010939,2]
[350584479,1737975038427,-467.59261391,0.00010958,2]
[350584480,1737975038440,-32.40738609,0.00010958,2]
[350584481,1737975038449,-436.13859464,0.00010958,2]
[350584482,1737975038468,-63.86140536,0.00010958,2]
[350584483,1737975038478,-500.0,0.00010958,2]
[350584484,1737975038487,-500.0,0.00010958,2]
[350584485,1737975038497,-500.0,0.00010958,2]
[350584486,1737975038508,-500.0,0.00010958,2]
[350584487,1737975038517,-500.0,0.00010958,2]
[350584488,1737975038527,-500.0,0.00010958,2]
[350584490,1737975038537,-500.0,0.00010958,2]
[350584492,1737975038547,-500.0,0.00010958,2]
[350584494,1737975038557,-500.0,0.00010958,2]
[350584496,1737975038566,-427.95733003,0.00010958,2]
[350584497,1737975038575,-500.0,0.00010958,2]
[350584498,1737975038586,-235.11,0.00010958,2]
[350584499,1737975038595,-500.0,0.00010958,2]
[350584500,1737975038605,-544.49375275,0.00010958,2]
[350584501,1737975038614,-500.0,0.00010958,2]
[350584502,1737975038624,-500.0,0.00010958,2]
[350584503,1737975038634,-500.0,0.00010958,2]
[350584505,1737975038643,-512.86303271,0.00010958,2]
[350584507,1737975038653,-500.0,0.00010958,2]
[350584509,1737975038662,-500.0,0.00010958,2]
[350584512,1737975038671,-500.0,0.00010958,2]
[350584514,1737975038680,-469.62483075,0.00010958,2]
[350584516,1737975038692,-30.37516925,0.00010958,2]
[350584518,1737975038701,-500.0,0.00010958,2]
[350584520,1737975038710,-500.0,0.00010958,2]
[350584522,1737975038719,-500.0,0.00010958,2]
[350584523,1737975038729,-500.0,0.00010958,2]
[350584524,1737975038738,-500.0,0.00010958,2]
[350584525,1737975038748,-500.0,0.00010958,2]
[350584526,1737975038758,-500.0,0.00010958,2]
[350584527,1737975038768,-500.0,0.00010958,2]
[350584528,1737975038777,-500.0,0.00010958,2]
[350584529,1737975038786,-500.0,0.00010958,2]
[350584530,1737975038796,-500.0,0.00010958,2]
[350584531,1737975038808,-500.0,0.00010958,2]
[350584532,1737975038817,-500.0,0.00010958,2]
[350584533,1737975038827,-500.0,0.00010958,2]
[350584534,1737975038836,-500.0,0.00010958,2]
[350584535,1737975038846,-500.0,0.00010958,2]
[350584536,1737975038856,-500.0,0.00010958,2]
[350584537,1737975038865,-500.0,0.00010958,2]
[350584538,1737975038876,-500.0,0.00010958,2]
[350584539,1737975038886,-500.0,0.00010958,2]
[350584540,1737975038895,-500.0,0.00010958,2]
[350584541,1737975038905,-290.08054851,0.00010958,2]
[350584542,1737975038916,-209.91945149,0.00010958,2]
[350584543,1737975038925,-500.0,0.00010958,2]
[350584544,1737975038935,-500.0,0.00010958,2]
[350584545,1737975038944,-500.0,0.00010958,2]
[350584546,1737975038953,-500.0,0.00010958,2]
[350584547,1737975038963,-500.0,0.00010958,2]
[350584548,1737975038972,-500.0,0.00010958,2]
[350584549,1737975038982,-500.0,0.00010958,2]
[350584550,1737975038991,-500.0,0.00010958,2]
[350584551,1737975039001,-500.0,0.00010958,2]
[350584552,1737975039011,-500.0,0.00010958,2]
[350584553,1737975039021,-500.0,0.00010958,2]
[350584554,1737975039030,-500.0,0.00010958,2]
[350584555,1737975039039,-500.0,0.00010958,2]
[350584556,1737975039049,-500.0,0.00010958,2]
[350584557,1737975039058,-500.0,0.00010958,2]
[350584558,1737975039068,-500.0,0.00010958,2]
[350584559,1737975039076,-500.0,0.00010958,2]
[350584560,1737975039087,-500.0,0.00010958,2]
[350584561,1737975039096,-500.0,0.00010958,2]
[350584562,1737975039106,-500.0,0.00010958,2]
[350584563,1737975039115,-500.0,0.00010958,2]
[350584564,1737975039125,-500.0,0.00010958,2]
[350584565,1737975039134,-500.0,0.00010958,2]
[350584566,1737975039144,-500.0,0.00010958,2]
[350584567,1737975039153,-340.0831036,0.00010958,2]
[350584568,1737975039163,-500.0,0.00010958,2]
[350584569,1737975039172,-500.0,0.00010958,2]
[350584570,1737975039182,-425.8332234,0.00010958,2]
[350584571,1737975039191,-500.0,0.00010958,2]
[350584572,1737975039205,-500.0,0.00010958,2]
[350584573,1737975039214,-500.0,0.00010958,2]
[350584574,1737975039224,-500.0,0.00010958,2]
[350584575,1737975039234,-500.0,0.00010958,2]
[350584576,1737975039243,-417.99820774,0.00010958,2]
[350584577,1737975039257,-500.0,0.00010958,2]
[350584578,1737975039267,-500.0,0.00010958,2]
[350584579,1737975039275,-500.0,0.00010958,2]
[350584580,1737975039286,-500.0,0.00010958,2]
[350584581,1737975039296,-513.97585426,0.00010958,2]
[350584582,1737975039306,-503.08272984,0.00010958,2]
[350584583,1737975039315,-150.0,0.00010979,2]
[350584584,1737975039325,-1000.0,0.00011,2]
[350584585,1737975039335,-1000.0,0.00011,2]
[350584586,1737975039344,-150.0,0.00011264,2]
[350584587,1737975039354,-150.0,0.00011359,2]
[350584588,1737975039363,-150.0,0.00011441,2]
[350584589,1737975039373,-150.0,0.00011454,2]
[350584590,1737975039382,-201.64,0.00011506,2]
[350584591,1737975039392,-150.0,0.0001154,2]
[350584592,1737975039401,-150.0,0.00011605,2]
[350584593,1737975039410,-420.0,0.00011605,2]
[350584594,1737975039419,-150.0,0.00011612,2]
[350584595,1737975039429,-150.0,0.00011649,2]
[350584596,1737975039439,-150.0,0.0001177,2]
[350584597,1737975039450,-150.0,0.00011777,2]
[350584598,1737975039459,-150.0,0.00011794,2]
[350584599,1737975039469,-150.0,0.00011862,2]
[350584600,1737975039479,-1411.63903,0.0001188,2]
[350584601,1737975039488,-150.0,0.00011882,2]
[350584602,1737975039497,-2361.074,0.0001189,2]
[350584603,1737975039509,-171.248,0.0001189,2]
[350584604,1737975039519,-1000.0,0.0001189,2]
[350584605,1737975039528,-181.66607526,0.00011896,2]
[350584606,1737975039538,-243.56346899,0.00011896,2]
[350584607,1737975039548,-243.56346897,0.00011896,2]
[350584608,1737975039558,-200.0,0.00011897,2]
[350584609,1737975039567,-243.56346897,0.00011897,2]
[350584610,1737975039576,-243.56346897,0.00011897,2]
[350584611,1737975039586,-243.56346897,0.00011898,2]
[350584612,1737975039596,-2485.8515,0.00011898,2]
[350584613,1737975039605,-243.56346897,0.00011898,2]
[350584614,1737975039614,-243.56346897,0.00011899,2]
[350584615,1737975039624,-157.39853122,0.00011899,2]
[350584616,1737975039633,-243.56346897,0.00011899,2]
[350584617,1737975039643,-243.56346897,0.000119,2]
[350584618,1737975039653,-243.56346897,0.000119,2]
[350584619,1737975039663,-178.4657768,0.000119,2]
[350584620,1737975039673,-230.88983646,0.000119,2]
[350584621,1737975039682,-150.0,0.00011904,2]
[350584622,1737975039691,-150.0,0.0001192,2]
[350584623,1737975039701,-150.0,0.00011956,2]
[350584624,1737975039710,-150.0,0.00011958,2]
[350584625,1737975039719,-500.0,0.00011973,2]
[350584626,1737975039729,-450.82,0.00011989,2]
[350584627,1737975039739,-474.3187194,0.00011989,2]
[350584628,1737975039748,-625.6139742,0.00011989,2]
[350584629,1737975039760,-189.0,0.0001199,2]
[350584630,1737975039769,-500.0,0.00011995,2]
[350584631,1737975039779,-500.0,0.00011995,2]
[350584632,1737975039789,-500.0,0.00011995,2]
[350584633,1737975039799,-500.0,0.00011995,2]
[350584634,1737975039811,-500.0,0.00011995,2]
[350584635,1737975039821,-500.0,0.00011995,2]
[350584636,1737975039830,-500.0,0.00011995,2]
[350584637,1737975039841,-500.0,0.00011995,2]
[350584638,1737975039851,-500.0,0.00011995,2]
[350584639,1737975039861,-500.0,0.00011995,2]
[350584640,1737975039870,-500.0,0.00011995,2]
[350584641,1737975039882,-500.0,0.00011995,2]
[350584642,1737975039891,-500.0,0.00011995,2]
[350584644,1737975039901,-500.0,0.00011995,2]
[350584646,1737975039910,-500.0,0.00011995,2]
[350584647,1737975039920,-536.2,0.00011995,2]
[350584648,1737975039929,-500.0,0.00011995,2]
[350584649,1737975039939,-500.0,0.00011995,2]
[350584650,1737975039948,-500.0,0.00011995,2]
[350584651,1737975039957,-880.8,0.00011995,2]
[350584652,1737975039966,-500.0,0.00011995,2]
[350584653,1737975039975,-500.0,0.00011995,2]
[350584654,1737975039985,-500.0,0.00011995,2]
[350584655,1737975039995,-500.0,0.00011995,2]
[350584657,1737975040005,-607.1,0.00011995,2]
[350584659,1737975040014,-500.0,0.00011995,2]
[350584660,1737975040023,-500.0,0.00011995,2]
[350584661,1737975040032,-500.0,0.00011995,2]
[350584662,1737975040042,-500.0,0.00011995,2]
[350584664,1737975040052,-497.97325642,0.00011995,2]
[350584665,1737975040062,-726.28,0.00011995,2]
[350584667,1737975040072,-500.0,0.00011995,2]
[350584668,1737975040082,-500.0,0.00011995,2]
[350584670,1737975040092,-1080.84,0.00011995,2]
[350584672,1737975040101,-500.0,0.00011995,2]
[350584674,1737975040110,-500.0,0.00011995,2]
[350584676,1737975040119,-500.0,0.00011995,2]
[350584678,1737975040128,-500.0,0.00011995,2]
[350584680,1737975040137,-500.0,0.00011995,2]
[350584681,1737975040146,-500.0,0.00011995,2]
[350584682,1737975040155,-38512.03154019,0.00011996,2]
[350584683,1737975040168,-95234.18491838,0.00011996,2]
[350584689,1737975042776,-500.0,0.00011995,2]
[350584692,1737975042787,-302.66496489,0.00011996,2]
[350584694,1737975042800,-632.27300002,0.00011996,2]
[350584696,1737975042817,-425.1582348,0.00011996,2]
[350584698,1737975042828,-36070.0458236,0.00011996,2]
[350584700,1737975042840,-880.88012,0.00011996,2]
[350584703,1737975042853,-46972.75339682,0.00011996,2]
[350584705,1737975042864,-722.19529931,0.00011996,2]
[350584708,1737975042888,-1649.538,0.00011996,2]
[350584714,1737975042936,-312.095598,0.00011996,2]
[350584716,1737975042948,-856.2799995,0.00011996,2]
[350584718,1737975042960,-553.048821,0.00011996,2]
[350584720,1737975042971,-31408.84759222,0.00011996,2]
[350584721,1737975042983,-113619.4466781,0.00011996,2]
[350584722,1737975042995,-535.42667588,0.00011996,2]
[350584723,1737975043006,-2156.03251395,0.00011996,2]
[350584726,1737975043151,-668.622,0.00011996,2]
[350584728,1737975043163,-305.03500002,0.00011996,2]
[350584731,1737975043174,-18657.34794376,0.00011996,2]
[350584735,1737975043208,-12736.48928438,0.00011996,2]
[350584737,1737975043219,-1110.0000001,0.00011996,2]
[350584739,1737975043230,-1432.75951153,0.00011996,2]
[350584742,1737975043242,-773.2,0.00011996,2]
[350584745,1737975043268,-3292.27565339,0.00011996,2]
[350584747,1737975043279,-4163.72940921,0.00011996,2]
[350584748,1737975043290,-312.934998,0.00011996,2]
[350584749,1737975043301,-8545.85860764,0.00011996,2]
[350584750,1737975043324,-1359.61261136,0.00011996,2]
[350584751,1737975043335,-4415.71371553,0.00011996,2]
[350584753,1737975043347,-780.43101342,0.00011996,2]
[350584758,1737975043382,-109059.23672548,0.00011996,2]
[350584772,1737975043615,-337.53199946,0.00011996,2]
[350584773,1737975043627,-310.000015,0.00011996,2]
[350584774,1737975043638,-21533.27470492,0.00011996,2]
[350584775,1737975043650,-10377.31968114,0.00011996,2]
[350584776,1737975043661,-1469.6840553,0.00011996,2]
[350584777,1737975043681,-1132.58449139,0.00011996,2]
[350584778,1737975043693,-6855.90067227,0.00011996,2]
[350584779,1737975043705,-1524.99999999,0.00011996,2]
[350584781,1737975043716,-11116.34384161,0.00011996,2]
[350584783,1737975043728,-2763.00864,0.00011996,2]
[350584785,1737975043739,-1583.29864202,0.00011996,2]
[350584787,1737975043750,-1201.98778846,0.00011996,2]
[350584796,1737975046183,-738.9582,0.00010457,2]
[350584797,1737975046193,-253.9589,0.00011896,2]
[350584798,1737975046202,-7.0829,0.00011995,2]
[350584799,1737975046213,-148.572525,0.00011995,2]
[350584800,1737975046223,-500.0,0.00011995,2]
[350584801,1737975046233,-500.0,0.00011995,2]
[350584802,1737975046242,-2490.86470042,0.00011996,2]
[350584803,1737975046254,-3143.20200158,0.00011996,2]
[350584804,1737975046266,-783.89642691,0.00011996,2]
[350584805,1737975046294,-703506.80769463,0.00011996,2]
[350584806,1737975046402,-390.4107502,0.00011996,2]
[350584807,1737975046460,-79577.24436595,0.00011996,2]
[350584808,1737975046518,-500.0,0.00011995,2]
[350584809,1737975046527,-5100.0,0.00011996,2]
[350584810,1737975046539,-512.14193356,0.00011996,2]
[350584811,1737975046549,-341.64888685,0.00011996,2]
[350584812,1737975046560,-263.21584521,0.00011996,2]
[350584813,1737975046571,-265.37865339,0.00011996,2]
[350584814,1737975046583,-363.19504832,0.00011996,2]
[350584831,1737975386547,515.91536507,0.00022,120]
[350584832,1737975507870,848.85189987,0.00021,120]
[350584836,1737975599785,1026.90064398,0.00022,120]
[350584840,1737975876681,777.42,8.773e-05,2]
[350584841,1737975907456,-20000.0,0.00016,30]
[350584842,1737975909312,-20000.0,0.00016,30]
[350584843,1737975966491,-20000.0,0.00016,30]
[350584844,1737975967568,-17520.06293931,0.00016,30]
[350584845,1737975967605,-211.08,0.00016658,30]
[350584846,1737976011941,38649.8169063,9.581e-05,7]
[350584847,1737976020092,-4268.57501,0.00018,30]
[350584848,1737976040724,-5012.724289,0.00015,14]
[350584849,1737976040758,-10718.700701,0.00016,15]
[350584857,1737976155316,150.0,0.0002,120]
[350584861,1737976231745,872.68648961,0.00022,120]
[350584886,1737976232445,-223.35,0.00010137,2]
[350584887,1737976232455,-48.15,0.0001057,2]
[350584888,1737976232466,-376.38686402,0.0001057,2]
[350584889,1737976232492,-1190.87951664,0.0001057,2]
[350584890,1737976232600,-864.47266695,0.0001057,2]
[350584891,1737976232608,-1007.99,0.00010647,2]
[350584892,1737976232617,-250.0,0.0001067,2]
[350584893,1737976232626,-795.92735839,0.0001067,2]
[350584894,1737976232636,-4237.5807011,0.0001067,2]
[350584895,1737976236353,-759.99999999,0.0001067,2]
[350584896,1737976236365,-1370.68264793,0.0001067,2]
[350584897,1737976236410,-17531.73665098,0.0001067,2]
[350584898,1737976236419,-199.13892164,0.00010707,2]
[350584899,1737976236428,-1000.0,0.00010807,2]
[350584900,1737976236437,-250.0,0.00010827,2]
[350584901,1737976236446,-153.2,0.00010829,2]
[350584902,1737976236456,-464.79,0.00010861,2]
[350584903,1737976236465,-251.74,0.0001087,2]
[350584904,1737976236476,-171.7,0.00010931,2]
[350584905,1737976236486,-2684.72334478,0.00010959,2]
[350584906,1737976236497,-2149.57665522,0.00010959,2]
[350584907,1737976236507,-248.62,0.00010972,2]
[350584908,1737976236517,-6.90334478,0.00010972,2]
[350584910,1737976236528,-244.88665522,0.00010972,2]
[350584912,1737976236537,-304.49577572,0.00011036,2]
[350584914,1737976236549,-472.92422428,0.00011036,2]
[350584916,1737976236558,-150.0,0.00011254,2]
[350584918,1737976236567,-27.82702378,0.00011255,2]
[350584921,1737976236579,-518.94,0.00011255,2]
[350584923,1737976236590,-375.839991,0.00011255,2]
[350584925,1737976236602,-3615.19767817,0.00011255,2]
[350585104,1737976238261,-8444.84103578,0.00011255,2]
[350585106,1737976238272,-4455.18934265,0.00011255,2]
[350585108,1737976238282,-533.50180783,0.00011326,2]
[350585110,1737976238291,-5486.0,0.00011426,2]
[350585112,1737976238300,-199.13892164,0.00011495,2]
[350585114,1737976238309,-1905.36153557,0.00011595,2]
[350585116,1737976238319,-393.99622197,0.00011604,2]
[350585118,1737976238328,-150.0,0.00011676,2]
[350585120,1737976238337,-442.211,0.00011676,2]
[350585122,1737976238346,-1107.0,0.00011676,2]
[350585124,1737976238355,-1000.0,0.00011742,2]
[350585126,1737976238368,-1000.0,0.00011794,2]
[350585128,1737976238377,-2250.32771725,0.00011794,2]
[350585130,1737976238387,-5933.94345514,0.00011795,2]
[350585132,1737976238397,-4819.7564,0.00011795,2]
[350585135,1737976238406,-5000.0,0.00011795,2]